[Event "Live Chess"]
[Site "Chess.com"]
[Date "2024.06.01"]
[Round "-"]
[White "ACM42"]
[Black "upoe610"]
[Result "1-0"]
[WhiteElo "2170"]
[BlackElo "2228"]
[TimeControl "300"]
[EndTime "14:31:11 PDT"]
[Termination "ACM42 won by resignation"]

1. e4 {[%clk 0:04:58.3]} 1... e5 {[%clk 0:04:58.8]} 2. Nf3 {[%clk 0:04:57.5]}
2... Nc6 {[%clk 0:04:57.6]} 3. Bc4 {[%clk 0:04:56.8]} 3... Nf6 {[%clk
0:04:56.4]} 4. d4 {[%clk 0:04:54.6]} 4... exd4 {[%clk 0:04:55.2]} 5. e5 {[%clk
0:04:54.1]} 5... Ne4 {[%clk 0:04:52.5]} 6. Bd5 {[%clk 0:04:52.3]} 6... Nc5
{[%clk 0:04:50.6]} 7. Nxd4 {[%clk 0:04:50.9]} 7... Ne6 {[%clk 0:04:49]} 8. Nf3
{[%clk 0:04:34.6]} 8... Bc5 {[%clk 0:04:47.2]} 9. O-O {[%clk 0:04:32.9]} 9...
O-O {[%clk 0:04:45.6]} 10. Nc3 {[%clk 0:04:32]} 10... d6 {[%clk 0:04:43.5]} 11.
Ne4 {[%clk 0:04:25.4]} 11... Bb6 {[%clk 0:04:40.8]} 12. exd6 {[%clk 0:04:22.6]}
12... cxd6 {[%clk 0:04:39.3]} 13. a3 {[%clk 0:04:19.7]} 13... Bc7 {[%clk
0:04:35.6]} 14. Neg5 {[%clk 0:04:17.9]} 14... Nxg5 {[%clk 0:04:33.9]} 15. Bxg5
{[%clk 0:04:17.2]} 15... h6 {[%clk 0:04:32.4]} 16. Bxd8 {[%clk 0:04:14.8]} 1-0

[Event "Live Chess"]
[Site "Chess.com"]
[Date "2024.06.01"]
[Round "-"]
[White "vincents82"]
[Black "dl_chess"]
[Result "1-0"]
[WhiteElo "2093"]
[BlackElo "1181"]
[TimeControl "300"]
[EndTime "14:31:49 PDT"]
[Termination "vincents82 won on time"]

1. e4 {[%clk 0:04:56.8]} 1... e6 {[%clk 0:04:59.1]} 2. d4 {[%clk 0:04:55.4]}
2... d5 {[%clk 0:04:57.8]} 3. Nd2 {[%clk 0:04:54.7]} 3... Nf6 {[%clk 0:04:56]}
4. e5 {[%clk 0:04:53.8]} 4... Nfd7 {[%clk 0:04:54.8]} 5. Bd3 {[%clk 0:04:53.5]}
5... c5 {[%clk 0:04:53.7]} 6. c3 {[%clk 0:04:53.2]} 6... Nc6 {[%clk 0:04:52.7]}
7. Ne2 {[%clk 0:04:52.4]} 7... Qb6 {[%clk 0:04:49.9]} 8. Nf3 {[%clk 0:04:49.5]}
8... cxd4 {[%clk 0:04:36.4]} 9. cxd4 {[%clk 0:04:48.5]} 9... Nxd4 {[%clk
0:04:25.1]} 10. Nexd4 {[%clk 0:04:45.5]} 10... a6 {[%clk 0:04:17.4]} 11. O-O
{[%clk 0:04:44.1]} 11... Nc5 {[%clk 0:04:03]} 12. Bb1 {[%clk 0:04:40.2]} 12...
Bd7 {[%clk 0:03:58.3]} 13. Be3 {[%clk 0:04:38]} 13... Rc8 {[%clk 0:03:36.6]} 14.
a3 {[%clk 0:04:35.2]} 14... Bb5 {[%clk 0:03:25.1]} 15. Re1 {[%clk 0:04:32.3]}
15... Be7 {[%clk 0:02:48.9]} 16. b4 {[%clk 0:04:30.6]} 16... Nd7 {[%clk
0:02:30.4]} 17. Nxb5 {[%clk 0:04:28.8]} 17... Qxb5 {[%clk 0:02:28.6]} 18. Bd3
{[%clk 0:04:27.4]} 18... Rc4 {[%clk 0:01:48]} 19. Bxc4 {[%clk 0:04:22.5]} 19...
Qxc4 {[%clk 0:01:46.9]} 20. Rc1 {[%clk 0:04:21.1]} 20... Qb5 {[%clk 0:01:17]}
21. Rc8+ {[%clk 0:04:18.4]} 21... Bd8 {[%clk 0:01:16]} 22. Qe2 {[%clk 0:04:17]}
22... Qxe2 {[%clk 0:01:12.8]} 23. Rxe2 {[%clk 0:04:15.9]} 23... O-O {[%clk
0:01:11.7]} 24. Rec2 {[%clk 0:04:14]} 24... Be7 {[%clk 0:00:40.1]} 25. Rxf8+
{[%clk 0:04:11]} 25... Bxf8 {[%clk 0:00:38.4]} 26. Rc7 {[%clk 0:04:09.2]} 26...
Nb8 {[%clk 0:00:35.1]} 27. Rxb7 {[%clk 0:04:08]} 27... Nc6 {[%clk 0:00:33]} 28.
Rc7 {[%clk 0:04:04]} 28... Ne7 {[%clk 0:00:30.1]} 29. Bc5 {[%clk 0:04:01.4]}
29... Nf5 {[%clk 0:00:18.8]} 30. Rc8 {[%clk 0:03:59]} 30... g6 {[%clk
0:00:09.2]} 31. Bxf8 {[%clk 0:03:56.6]} 31... h5 {[%clk 0:00:06.9]} 32. Ng5
{[%clk 0:03:54.4]} 1-0

[Event "Live Chess"]
[Site "Chess.com"]
[Date "2024.06.01"]
[Round "-"]
[White "BishopofWells"]
[Black "WorcesterYork"]
[Result "0-1"]
[WhiteElo "1539"]
[BlackElo "2491"]
[TimeControl "300"]
[EndTime "14:31:54 PDT"]
[Termination "WorcesterYork won by resignation"]

1. d4 {[%clk 0:04:54.4]} 1... c5 {[%clk 0:04:59.9]} 2. d5 {[%clk 0:04:51.4]}
2... d6 {[%clk 0:04:58.5]} 3. c4 {[%clk 0:04:50.1]} 3... g6 {[%clk 0:04:58.2]}
4. e4 {[%clk 0:04:47.9]} 4... Bg7 {[%clk 0:04:57.8]} 5. Qc2 {[%clk 0:04:45.6]}
5... a6 {[%clk 0:04:56.6]} 6. Bd2 {[%clk 0:04:44.1]} 6... Nf6 {[%clk 0:04:55.5]}
7. Nc3 {[%clk 0:04:40.1]} 7... O-O {[%clk 0:04:55.1]} 8. Nf3 {[%clk 0:04:36]}
8... e6 {[%clk 0:04:54.6]} 9. Be2 {[%clk 0:04:32.6]} 9... exd5 {[%clk
0:04:54.1]} 10. Nxd5 {[%clk 0:04:29.4]} 10... Nxd5 {[%clk 0:04:52.7]} 11. cxd5
{[%clk 0:04:24.2]} 11... Bg4 {[%clk 0:04:51.3]} 12. O-O {[%clk 0:04:20.8]} 12...
Nd7 {[%clk 0:04:50.5]} 13. h3 {[%clk 0:04:19.9]} 13... Bxf3 {[%clk 0:04:49.5]}
14. Bxf3 {[%clk 0:04:18.3]} 14... b5 {[%clk 0:04:49.4]} 15. Bc3 {[%clk
0:04:17.1]} 15... Ne5 {[%clk 0:04:46.5]} 16. Be2 {[%clk 0:04:12.5]} 16... b4
{[%clk 0:04:46]} 17. Bd2 {[%clk 0:04:07]} 17... a5 {[%clk 0:04:42.7]} 18. Rab1
{[%clk 0:04:00]} 18... Re8 {[%clk 0:04:40.9]} 19. Bb5 {[%clk 0:03:55.6]} 19...
Re7 {[%clk 0:04:38.9]} 20. Bg5 {[%clk 0:03:54.3]} 20... f6 {[%clk 0:04:37.5]}
21. Be3 {[%clk 0:03:51.8]} 21... Rb8 {[%clk 0:04:36.1]} 22. Ba4 {[%clk
0:03:41.7]} 22... Nd7 {[%clk 0:04:34.6]} 23. f4 {[%clk 0:03:33.3]} 23... Nb6
{[%clk 0:04:33.7]} 24. Bb3 {[%clk 0:03:31]} 24... Qd7 {[%clk 0:04:31]} 25. a3
{[%clk 0:03:27.2]} 25... Rbe8 {[%clk 0:04:29.7]} 26. axb4 {[%clk 0:03:18.9]}
26... axb4 {[%clk 0:04:29.6]} 27. e5 {[%clk 0:03:04.4]} 27... fxe5 {[%clk
0:04:27.5]} 28. fxe5 {[%clk 0:03:02.6]} 28... Rxe5 {[%clk 0:04:26.7]} 29. Bf4
{[%clk 0:02:58.6]} 29... Re2 {[%clk 0:04:25.9]} 30. Qd3 {[%clk 0:02:44.4]} 30...
Rxb2 {[%clk 0:04:24.9]} 31. Rxb2 {[%clk 0:02:42.7]} 31... Bxb2 {[%clk
0:04:24.8]} 32. Qg3 {[%clk 0:02:34.8]} 32... Be5 {[%clk 0:04:22.8]} 33. Bxe5
{[%clk 0:02:28.7]} 33... Rxe5 {[%clk 0:04:22.7]} 34. Qf4 {[%clk 0:02:27.4]}
34... Qe7 {[%clk 0:04:22]} 35. Kh2 {[%clk 0:02:16.6]} 35... Rf5 {[%clk
0:04:20.3]} 36. Qc1 {[%clk 0:02:10.7]} 36... Qe5+ {[%clk 0:04:19.4]} 37. Kh1
{[%clk 0:02:06.8]} 37... Rxf1+ {[%clk 0:04:17.5]} 38. Qxf1 {[%clk 0:02:04.5]}
38... Kg7 {[%clk 0:04:16.7]} 39. Qf3 {[%clk 0:01:58.8]} 39... c4 {[%clk
0:04:15.2]} 40. Bd1 {[%clk 0:01:47.8]} 40... Nxd5 {[%clk 0:04:14.1]} 41. Qg4
{[%clk 0:01:40.9]} 41... Nf6 {[%clk 0:04:12.2]} 42. Qf3 {[%clk 0:01:35.1]} 42...
b3 {[%clk 0:04:08.8]} 43. Bxb3 {[%clk 0:01:31.8]} 43... cxb3 {[%clk 0:04:08.7]}
44. Qxb3 {[%clk 0:01:30.7]} 44... d5 {[%clk 0:04:07.7]} 45. Qb7+ {[%clk
0:01:29.3]} 45... Kh6 {[%clk 0:04:07]} 46. Qb5 {[%clk 0:01:25.7]} 46... Ne4
{[%clk 0:04:05.9]} 47. Qb1 {[%clk 0:01:19]} 47... d4 {[%clk 0:04:03.1]} 48. Qc1+
{[%clk 0:01:17.2]} 48... Qg5 {[%clk 0:04:01.2]} 49. Qa3 {[%clk 0:01:12.8]} 49...
Qf4 {[%clk 0:03:51.3]} 50. Qa4 {[%clk 0:01:01.8]} 50... d3 {[%clk 0:03:49.4]}
51. Qb3 {[%clk 0:00:59.4]} 51... d2 {[%clk 0:03:47]} 52. Qd1 {[%clk 0:00:55.1]}
52... Nf2+ {[%clk 0:03:45.9]} 0-1

[Event "Live Chess"]
[Site "Chess.com"]
[Date "2024.06.01"]
[Round "-"]
[White "FlyingChessKestrel13"]
[Black "booktrunk"]
[Result "1-0"]
[WhiteElo "2062"]
[BlackElo "1410"]
[TimeControl "300"]
[EndTime "14:31:57 PDT"]
[Termination "FlyingChessKestrel13 won by resignation"]

1. e4 {[%clk 0:04:57.5]} 1... b6 {[%clk 0:04:54.5]} 2. Nf3 {[%clk 0:04:56.9]}
2... Bb7 {[%clk 0:04:53.9]} 3. d3 {[%clk 0:04:56.4]} 3... e6 {[%clk 0:04:51.1]}
4. Nbd2 {[%clk 0:04:56.3]} 4... Nf6 {[%clk 0:04:47.7]} 5. g3 {[%clk 0:04:55.5]}
5... h6 {[%clk 0:04:46.4]} 6. Bg2 {[%clk 0:04:55]} 6... Bb4 {[%clk 0:04:43.2]}
7. O-O {[%clk 0:04:54.4]} 7... a5 {[%clk 0:04:41.7]} 8. c3 {[%clk 0:04:53.1]}
8... Be7 {[%clk 0:04:40.1]} 9. e5 {[%clk 0:04:50.2]} 9... Nh7 {[%clk 0:04:37.1]}
10. d4 {[%clk 0:04:47.6]} 10... O-O {[%clk 0:04:37]} 11. h4 {[%clk 0:04:45.7]}
11... d6 {[%clk 0:04:31.9]} 12. Nc4 {[%clk 0:04:43.4]} 12... dxe5 {[%clk
0:04:30.6]} 13. Ncxe5 {[%clk 0:04:42.3]} 13... Bf6 {[%clk 0:04:27.1]} 14. Bf4
{[%clk 0:04:39.7]} 14... Nd7 {[%clk 0:04:23.2]} 15. Nxd7 {[%clk 0:04:38.2]}
15... Qxd7 {[%clk 0:04:18.7]} 16. Ne5 {[%clk 0:04:37.4]} 16... Bxe5 {[%clk
0:04:16.9]} 17. Bxb7 {[%clk 0:04:36.5]} 17... Rab8 {[%clk 0:04:15.8]} 18. dxe5
{[%clk 0:04:26.4]} 18... Qxd1 {[%clk 0:04:13.6]} 19. Raxd1 {[%clk 0:04:25.7]}
19... Rxb7 {[%clk 0:04:12.8]} 20. Rd7 {[%clk 0:04:24.3]} 20... f6 {[%clk
0:04:07.9]} 21. Rfd1 {[%clk 0:04:21.3]} 21... Rf7 {[%clk 0:04:03.4]} 22. Rxf7
{[%clk 0:04:19.9]} 22... Kxf7 {[%clk 0:04:01.4]} 23. Rd7+ {[%clk 0:04:19.6]}
23... Kf8 {[%clk 0:03:59.5]} 24. exf6 {[%clk 0:04:18.5]} 24... Nxf6 {[%clk
0:03:57.1]} 25. Rxc7 {[%clk 0:04:17.8]} 25... Rxc7 {[%clk 0:03:52.6]} 26. Bxc7
{[%clk 0:04:17.3]} 26... Nd7 {[%clk 0:03:51.5]} 27. Kf1 {[%clk 0:04:12.3]} 27...
Ke7 {[%clk 0:03:49.5]} 28. Bf4 {[%clk 0:04:10]} 28... b5 {[%clk 0:03:47.2]} 29.
Ke2 {[%clk 0:04:08.3]} 29... Nf6 {[%clk 0:03:45.9]} 30. Kd3 {[%clk 0:04:06.1]}
30... Nd5 {[%clk 0:03:44.6]} 31. Be3 {[%clk 0:04:03.4]} 31... Kd7 {[%clk
0:03:43]} 32. b3 {[%clk 0:04:00.3]} 32... Kc6 {[%clk 0:03:41.8]} 33. c4 {[%clk
0:03:59.6]} 33... bxc4+ {[%clk 0:03:39.7]} 34. bxc4 {[%clk 0:03:58]} 34... Nb4+
{[%clk 0:03:39.3]} 35. Kd4 {[%clk 0:03:56]} 35... Nxa2 {[%clk 0:03:39.2]} 36.
Ke5 {[%clk 0:03:54.8]} 36... Nb4 {[%clk 0:03:38.2]} 37. Kxe6 {[%clk 0:03:53.6]}
37... Nc2 {[%clk 0:03:36]} 38. Bc1 {[%clk 0:03:50.4]} 38... a4 {[%clk 0:03:35]}
39. Kf7 {[%clk 0:03:49.1]} 39... Kc5 {[%clk 0:03:34.3]} 40. Kxg7 {[%clk
0:03:48.3]} 40... Kxc4 {[%clk 0:03:34.2]} 41. Kxh6 {[%clk 0:03:43.4]} 41... Kb3
{[%clk 0:03:34.1]} 42. g4 {[%clk 0:03:42.7]} 42... Nd4 {[%clk 0:03:34]} 43. g5
{[%clk 0:03:37.2]} 43... Kc2 {[%clk 0:03:30.6]} 44. Ba3 {[%clk 0:03:35.1]} 44...
Nb5 {[%clk 0:03:29.6]} 45. Bf8 {[%clk 0:03:33.8]} 45... Nd4 {[%clk 0:03:19.4]}
46. g6 {[%clk 0:03:28.7]} 46... Ne6 {[%clk 0:03:19.3]} 47. Bd6 {[%clk
0:03:26.5]} 47... Kd3 {[%clk 0:03:16.2]} 48. g7 {[%clk 0:03:25.6]} 48... Nxg7
{[%clk 0:03:14.1]} 49. Kxg7 {[%clk 0:03:24.8]} 49... Ke4 {[%clk 0:03:13.3]} 50.
h5 {[%clk 0:03:23.8]} 50... Kf3 {[%clk 0:03:13.2]} 51. h6 {[%clk 0:03:23.2]}
51... Kxf2 {[%clk 0:03:13.1]} 52. h7 {[%clk 0:03:22.8]} 52... Ke3 {[%clk
0:03:13]} 53. h8=Q {[%clk 0:03:22.3]} 53... Kd3 {[%clk 0:03:12.9]} 54. Qa8
{[%clk 0:03:21.2]} 54... Kd4 {[%clk 0:03:12.8]} 55. Qxa4+ {[%clk 0:03:20.4]}
55... Kd5 {[%clk 0:03:12.7]} 56. Qg4 {[%clk 0:03:19.3]} 56... Kxd6 {[%clk
0:03:12.6]} 57. Kf6 {[%clk 0:03:18.6]} 1-0

[Event "Live Chess"]
[Site "Chess.com"]
[Date "2024.06.01"]
[Round "-"]
[White "CCGoodKnightRookie"]
[Black "lateforthesky"]
[Result "1-0"]
[WhiteElo "2377"]
[BlackElo "2145"]
[TimeControl "300"]
[EndTime "14:32:00 PDT"]
[Termination "CCGoodKnightRookie won by resignation"]

1. d4 {[%clk 0:04:58.5]} 1... Nf6 {[%clk 0:04:58.2]} 2. Nc3 {[%clk 0:04:58.1]}
2... d5 {[%clk 0:04:55.3]} 3. Bf4 {[%clk 0:04:57.6]} 3... g6 {[%clk 0:04:52.5]}
4. e3 {[%clk 0:04:56.8]} 4... Bg7 {[%clk 0:04:51.6]} 5. h4 {[%clk 0:04:56.3]}
5... O-O {[%clk 0:04:50.5]} 6. h5 {[%clk 0:04:55.7]} 6... c5 {[%clk 0:04:50]} 7.
hxg6 {[%clk 0:04:54.9]} 7... fxg6 {[%clk 0:04:48.3]} 8. Nf3 {[%clk 0:04:52.6]}
8... cxd4 {[%clk 0:04:46.2]} 9. Qxd4 {[%clk 0:04:48.6]} 9... Nc6 {[%clk
0:04:43.6]} 10. Qd2 {[%clk 0:04:48.2]} 10... Bf5 {[%clk 0:04:26.9]} 11. O-O-O
{[%clk 0:04:46.7]} 11... Qa5 {[%clk 0:04:22.3]} 12. a3 {[%clk 0:04:19.5]} 12...
Rfd8 {[%clk 0:04:16.9]} 13. Bd3 {[%clk 0:04:08.3]} 13... Bxd3 {[%clk 0:04:08.8]}
14. Qxd3 {[%clk 0:04:07]} 14... e5 {[%clk 0:04:03.2]} 15. Nxe5 {[%clk
0:04:03.2]} 15... Nxe5 {[%clk 0:03:48.6]} 16. Bxe5 {[%clk 0:04:01.7]} 16... Rac8
{[%clk 0:03:47.4]} 17. Bxf6 {[%clk 0:03:54.8]} 17... Bxf6 {[%clk 0:03:45.6]} 18.
Nxd5 {[%clk 0:03:53.8]} 18... Kg7 {[%clk 0:03:28.5]} 19. Qb3 {[%clk 0:03:44.1]}
19... Rd6 {[%clk 0:03:06.9]} 20. Qxb7+ {[%clk 0:03:39.5]} 1-0

[Event "Live Chess"]
[Site "Chess.com"]
[Date "2024.06.01"]
[Round "-"]
[White "e4evr"]
[Black "Ferrarifan27"]
[Result "0-1"]
[WhiteElo "2271"]
[BlackElo "2087"]
[TimeControl "300"]
[EndTime "14:32:02 PDT"]
[Termination "Ferrarifan27 won by checkmate"]

1. e4 {[%clk 0:04:58.3]} 1... e5 {[%clk 0:04:54.7]} 2. f4 {[%clk 0:04:54.8]}
2... exf4 {[%clk 0:04:53.1]} 3. Nf3 {[%clk 0:04:53.6]} 3... Be7 {[%clk
0:04:51.7]} 4. Bc4 {[%clk 0:04:51.6]} 4... d6 {[%clk 0:04:46.8]} 5. d4 {[%clk
0:04:50]} 5... g5 {[%clk 0:04:44]} 6. O-O {[%clk 0:04:44.3]} 6... Bg4 {[%clk
0:04:36.8]} 7. c3 {[%clk 0:04:39.4]} 7... Nd7 {[%clk 0:04:34.4]} 8. Qb3 {[%clk
0:04:37.5]} 8... Nb6 {[%clk 0:04:31.3]} 9. Bxf7+ {[%clk 0:04:36.3]} 9... Kf8
{[%clk 0:04:30.6]} 10. Nxg5 {[%clk 0:04:08.7]} 10... Bxg5 {[%clk 0:04:26.4]} 11.
Bxf4 {[%clk 0:04:07.7]} 11... Kg7 {[%clk 0:04:18.7]} 12. Bxg8 {[%clk 0:04:00.8]}
12... Rxg8 {[%clk 0:04:17]} 13. Bxg5 {[%clk 0:03:53.5]} 13... Qxg5 {[%clk
0:04:15.9]} 14. Qf7+ {[%clk 0:03:52.9]} 14... Kh8 {[%clk 0:04:14.6]} 15. Na3
{[%clk 0:03:46.1]} 15... Qg7 {[%clk 0:04:07.4]} 16. Nb5 {[%clk 0:03:40.2]} 16...
Bh3 {[%clk 0:03:39.6]} 17. Qxg7+ {[%clk 0:03:31.3]} 17... Rxg7 {[%clk
0:03:37.8]} 18. Rf2 {[%clk 0:03:30.4]} 18... Rag8 {[%clk 0:03:29.4]} 19. g3
{[%clk 0:03:25.3]} 19... a6 {[%clk 0:03:24.5]} 20. Na3 {[%clk 0:03:20.3]} 20...
Re8 {[%clk 0:03:05.8]} 21. Re1 {[%clk 0:03:12.2]} 21... Kg8 {[%clk 0:03:02.9]}
22. Rf4 {[%clk 0:03:08.1]} 22... Rf7 {[%clk 0:02:57.1]} 23. Rh4 {[%clk
0:02:58.9]} 23... Bd7 {[%clk 0:02:53.2]} 24. b3 {[%clk 0:02:48]} 24... Rfe7
{[%clk 0:02:45.4]} 25. Nc2 {[%clk 0:02:34.6]} 25... Bc6 {[%clk 0:02:37.4]} 26.
Rg4+ {[%clk 0:02:27.3]} 26... Kh8 {[%clk 0:02:35]} 27. e5 {[%clk 0:02:13.4]}
27... dxe5 {[%clk 0:02:32.6]} 28. dxe5 {[%clk 0:02:12.6]} 28... Rxe5 {[%clk
0:02:30.6]} 29. Rxe5 {[%clk 0:02:11]} 29... Rxe5 {[%clk 0:02:29.4]} 30. Nd4
{[%clk 0:02:10.9]} 30... Bd7 {[%clk 0:02:16.1]} 31. Rf4 {[%clk 0:02:08.9]} 31...
Kg7 {[%clk 0:02:12.9]} 32. Kf2 {[%clk 0:02:04.8]} 32... Nd5 {[%clk 0:02:08.9]}
33. Rf3 {[%clk 0:01:53.7]} 33... c5 {[%clk 0:02:07.8]} 34. Ne2 {[%clk
0:01:50.9]} 34... Rf5 {[%clk 0:02:04.5]} 35. Nf4 {[%clk 0:01:45.6]} 35... Nxf4
{[%clk 0:02:03.5]} 36. gxf4 {[%clk 0:01:44]} 36... Bc6 {[%clk 0:02:01.1]} 37.
Rg3+ {[%clk 0:01:43.7]} 37... Kf7 {[%clk 0:01:55.7]} 38. Ke3 {[%clk 0:01:43.2]}
38... h5 {[%clk 0:01:46.5]} 39. Rg1 {[%clk 0:01:41.2]} 39... b5 {[%clk
0:01:29.8]} 40. c4 {[%clk 0:01:39.3]} 40... bxc4 {[%clk 0:01:23.3]} 41. bxc4
{[%clk 0:01:39.2]} 41... Rf6 {[%clk 0:01:16.4]} 42. Rg5 {[%clk 0:01:37.8]} 42...
Re6+ {[%clk 0:01:15.7]} 43. Kd3 {[%clk 0:01:35.2]} 43... Be4+ {[%clk 0:01:13.8]}
44. Kc3 {[%clk 0:01:32.2]} 44... Bg6 {[%clk 0:01:12.8]} 45. Rxc5 {[%clk
0:01:31]} 45... Re3+ {[%clk 0:01:11.6]} 46. Kd4 {[%clk 0:01:24.4]} 46... Re4+
{[%clk 0:01:10.3]} 47. Kd5 {[%clk 0:01:23.3]} 47... Rxf4 {[%clk 0:01:09.6]} 48.
Rc7+ {[%clk 0:01:22.5]} 48... Kg8 {[%clk 0:01:05.8]} 49. Rc6 {[%clk 0:01:22.4]}
49... Kg7 {[%clk 0:01:03.7]} 50. Rxa6 {[%clk 0:01:21.2]} 50... Bf7+ {[%clk
0:01:02.8]} 51. Ke5 {[%clk 0:01:19.9]} 51... Rxc4 {[%clk 0:01:01.5]} 52. a4
{[%clk 0:01:17]} 52... Rc2 {[%clk 0:00:58.9]} 53. h4 {[%clk 0:01:13.2]} 53...
Rh2 {[%clk 0:00:57]} 54. a5 {[%clk 0:01:11.7]} 54... Rxh4 {[%clk 0:00:56]} 55.
Rb6 {[%clk 0:01:11.3]} 55... Ra4 {[%clk 0:00:54.3]} 56. Rb5 {[%clk 0:01:07.8]}
56... h4 {[%clk 0:00:52.4]} 57. Kd6 {[%clk 0:01:07.2]} 57... h3 {[%clk
0:00:49.1]} 58. Rb2 {[%clk 0:01:06.5]} 58... Rxa5 {[%clk 0:00:45.1]} 59. Rh2
{[%clk 0:01:05.8]} 59... Ra3 {[%clk 0:00:43.8]} 60. Ke5 {[%clk 0:01:04.6]} 60...
Kg6 {[%clk 0:00:38.1]} 61. Kf4 {[%clk 0:01:03.7]} 61... Be6 {[%clk 0:00:36.6]}
62. Re2 {[%clk 0:01:02.3]} 62... Ra6 {[%clk 0:00:32.7]} 63. Kg3 {[%clk
0:01:00.6]} 63... Bf5 {[%clk 0:00:28.6]} 64. Kh2 {[%clk 0:00:57.2]} 64... Kg5
{[%clk 0:00:23.8]} 65. Rd2 {[%clk 0:00:56.1]} 65... Kh4 {[%clk 0:00:20.5]} 66.
Rd4+ {[%clk 0:00:55]} 66... Bg4 {[%clk 0:00:19.9]} 67. Rd2 {[%clk 0:00:54.6]}
67... Re6 {[%clk 0:00:18]} 68. Rd8 {[%clk 0:00:51.6]} 68... Re2+ {[%clk
0:00:16.1]} 69. Kg1 {[%clk 0:00:51.1]} 69... Kg3 {[%clk 0:00:13.9]} 70. Rd3+
{[%clk 0:00:48]} 70... Bf3 {[%clk 0:00:13]} 71. Kf1 {[%clk 0:00:46.8]} 71... Rh2
{[%clk 0:00:10.3]} 72. Ke1 {[%clk 0:00:45.3]} 72... Rh1+ {[%clk 0:00:09.3]} 73.
Kd2 {[%clk 0:00:44.5]} 73... Rd1+ {[%clk 0:00:08.8]} 74. Ke3 {[%clk 0:00:44.1]}
74... Rxd3+ {[%clk 0:00:08.7]} 75. Kxd3 {[%clk 0:00:44]} 75... h2 {[%clk
0:00:08.3]} 76. Kd4 {[%clk 0:00:43.9]} 76... h1=Q {[%clk 0:00:07.8]} 77. Ke5
{[%clk 0:00:43.8]} 77... Qe1+ {[%clk 0:00:07.2]} 78. Kd6 {[%clk 0:00:43.7]}
78... Qe4 {[%clk 0:00:06.9]} 79. Kd7 {[%clk 0:00:43]} 79... Kf4 {[%clk
0:00:06.8]} 80. Kc7 {[%clk 0:00:42.9]} 80... Qd5 {[%clk 0:00:05.7]} 81. Kb6
{[%clk 0:00:42.8]} 81... Qc6+ {[%clk 0:00:03.7]} 82. Ka7 {[%clk 0:00:42]} 82...
Be2 {[%clk 0:00:03]} 83. Kb8 {[%clk 0:00:41.2]} 83... Bf3 {[%clk 0:00:02.3]} 84.
Ka7 {[%clk 0:00:40.6]} 84... Qb7# {[%clk 0:00:01.8]} 0-1

[Event "Live Chess"]
[Site "Chess.com"]
[Date "2024.06.01"]
[Round "-"]
[White "gmnorfolk"]
[Black "gobbles19"]
[Result "0-1"]
[WhiteElo "2081"]
[BlackElo "2271"]
[TimeControl "300"]
[EndTime "14:32:22 PDT"]
[Termination "gobbles19 won by resignation"]

1. c4 {[%clk 0:04:57.7]} 1... e5 {[%clk 0:04:58.7]} 2. Nc3 {[%clk 0:04:55.8]}
2... Bc5 {[%clk 0:04:57.8]} 3. Nf3 {[%clk 0:04:52.6]} 3... d6 {[%clk 0:04:55.3]}
4. e3 {[%clk 0:04:51.1]} 4... Nf6 {[%clk 0:04:48.1]} 5. d4 {[%clk 0:04:47.7]}
5... exd4 {[%clk 0:04:46.5]} 6. exd4 {[%clk 0:04:46.3]} 6... Bb6 {[%clk
0:04:45.8]} 7. Bd3 {[%clk 0:04:43.6]} 7... O-O {[%clk 0:04:44.6]} 8. Bg5 {[%clk
0:04:24]} 8... Re8+ {[%clk 0:04:38.2]} 9. Kf1 {[%clk 0:04:20.5]} 9... Bg4 {[%clk
0:04:21.7]} 10. h3 {[%clk 0:03:32.2]} 10... Bxf3 {[%clk 0:04:10.1]} 11. Qxf3
{[%clk 0:03:29.4]} 11... Bxd4 {[%clk 0:04:09.1]} 12. Qxb7 {[%clk 0:03:28.3]}
12... Nbd7 {[%clk 0:04:06.2]} 13. Nd5 {[%clk 0:03:26]} 13... Nc5 {[%clk
0:03:54.7]} 14. Qc6 {[%clk 0:03:11.6]} 14... Nxd3 {[%clk 0:03:47.1]} 15. Rd1
{[%clk 0:03:09.8]} 15... Ne5 {[%clk 0:03:42.9]} 16. Qa4 {[%clk 0:03:00.8]} 16...
c5 {[%clk 0:03:25.7]} 17. f4 {[%clk 0:02:44.3]} 17... Ned7 {[%clk 0:02:36.5]}
18. Qc2 {[%clk 0:02:27.7]} 18... Nb6 {[%clk 0:02:29]} 19. Rxd4 {[%clk
0:02:21.7]} 19... cxd4 {[%clk 0:02:21.3]} 20. Nxf6+ {[%clk 0:02:18.6]} 20...
gxf6 {[%clk 0:02:17.6]} 21. Bh6 {[%clk 0:02:17]} 21... Qe7 {[%clk 0:02:11]} 22.
Qf2 {[%clk 0:01:53.6]} 22... Qe3 {[%clk 0:02:05.5]} 23. Qh4 {[%clk 0:01:46.3]}
23... Qe2+ {[%clk 0:02:04.4]} 24. Kg1 {[%clk 0:01:45.2]} 24... Qe1+ {[%clk
0:02:03.6]} 0-1

[Event "Live Chess"]
[Site "Chess.com"]
[Date "2024.06.01"]
[Round "-"]
[White "hapehansen"]
[Black "agamilewska"]
[Result "1-0"]
[WhiteElo "2255"]
[BlackElo "1764"]
[TimeControl "300"]
[EndTime "14:32:33 PDT"]
[Termination "hapehansen won by resignation"]

1. Nf3 {[%clk 0:04:56.9]} 1... d5 {[%clk 0:04:58.9]} 2. d4 {[%clk 0:04:55.3]}
2... Nf6 {[%clk 0:04:55.4]} 3. g3 {[%clk 0:04:54.1]} 3... e6 {[%clk 0:04:54.7]}
4. Bg2 {[%clk 0:04:53.6]} 4... c5 {[%clk 0:04:54.1]} 5. c4 {[%clk 0:04:48.6]}
5... dxc4 {[%clk 0:04:52.9]} 6. O-O {[%clk 0:04:45.5]} 6... cxd4 {[%clk
0:04:51.4]} 7. Qa4+ {[%clk 0:04:41.9]} 7... Nc6 {[%clk 0:04:50]} 8. Rd1 {[%clk
0:04:36.7]} 8... Bd7 {[%clk 0:04:47.4]} 9. Qxc4 {[%clk 0:04:34.3]} 9... Be7
{[%clk 0:04:46]} 10. Nxd4 {[%clk 0:04:30.9]} 10... Nxd4 {[%clk 0:04:44.6]} 11.
Qxd4 {[%clk 0:04:29.1]} 11... O-O {[%clk 0:04:39.8]} 12. Nc3 {[%clk 0:04:24.1]}
12... Bc6 {[%clk 0:04:37.2]} 13. Bxc6 {[%clk 0:04:16.5]} 13... Qxd4 {[%clk
0:04:30.8]} 14. Rxd4 {[%clk 0:04:13.7]} 14... bxc6 {[%clk 0:04:30]} 15. Bg5
{[%clk 0:04:10.2]} 15... c5 {[%clk 0:04:27]} 16. Rd3 {[%clk 0:04:03.4]} 16...
Rab8 {[%clk 0:04:24.3]} 17. b3 {[%clk 0:03:58.8]} 17... h6 {[%clk 0:04:21.5]}
18. Bxf6 {[%clk 0:03:56.2]} 18... Bxf6 {[%clk 0:04:20.6]} 19. Rc1 {[%clk
0:03:55.9]} 19... Rfd8 {[%clk 0:04:13.9]} 20. Rxd8+ {[%clk 0:03:50.7]} 20...
Rxd8 {[%clk 0:04:13.2]} 21. Ne4 {[%clk 0:03:50.2]} 21... Bd4 {[%clk 0:04:02.5]}
22. e3 {[%clk 0:03:46.8]} 22... f5 {[%clk 0:04:00.5]} 23. exd4 {[%clk
0:03:43.9]} 23... fxe4 {[%clk 0:03:58]} 24. dxc5 {[%clk 0:03:43.5]} 24... Rc8
{[%clk 0:03:54.3]} 25. Kf1 {[%clk 0:03:34.4]} 25... a5 {[%clk 0:03:48.6]} 26.
Ke2 {[%clk 0:03:32.7]} 26... Kf7 {[%clk 0:03:40.9]} 27. Ke3 {[%clk 0:03:31.1]}
27... e5 {[%clk 0:03:39.1]} 28. Kxe4 {[%clk 0:03:29.7]} 28... Ke6 {[%clk
0:03:38.7]} 29. c6 {[%clk 0:03:28.3]} 29... Kd6 {[%clk 0:03:37.3]} 30. c7 {[%clk
0:03:27.2]} 30... g5 {[%clk 0:03:34]} 31. g4 {[%clk 0:03:20.8]} 1-0